[Event "FIDE Women World Rapid 2024"]
[Site "New York"]
[Date "2024.12.27"]
[Round "5.7"]
[White "Nilssen, Ellen Fredericia"]
[Black "Danielian, Elina"]
[Result "0-1"]
[ECO "E14"]
[WhiteElo "2181"]
[BlackElo "2398"]
[Annotator "ChessBase"]
[PlyCount "142"]
[EventDate "2024.12.14"]
[EventType "swiss"]
[EventCountry "USA"]
[SourceTitle "playchess.com"]
[Source "ChessBase"]
[SourceQuality "1"]
[TimeControl "900+10"]

1. d4 {[%emt 0:00:04]} Nf6 {[%emt 0:00:01]} 2. c4 {[%emt 0:00:02]} e6 {[%emt 0:00:02]} 3. Nf3 {[%emt 0:00:03]} c5 {[%emt 0:00:04]} 4. e3 {[%emt 0:00:07]} b6 {[%emt 0:00:08]} 5. Nc3 {[%emt 0:00:12]} Bb7 {[%emt 0:00:08]} 6. Be2 {[%emt 0:00:06]} g6 {[%emt 0:00:16]} 7. O-O {[%emt 0:00:40]} Bg7 {[%emt 0:00:13]} 8. b3 {[%emt 0:00:05]} O-O {[%emt 0:00:03]} 9. Bb2 {[%emt 0:00:01]} cxd4 {[%emt 0:00:16]} 10. Nxd4 {[%emt 0:00:18]} a6 {[%emt 0:00:09]} 11. Bf3 {[%emt 0:00:45]} Qc8 {[%emt 0:00:05]} 12. Rc1 {[%emt 0:00:16]} Rd8 {[%emt 0:00:03]} 13. Na4 {[%emt 0:02:55]} Qc7 {[%emt 0:00:39]} 14. Qe2 {[%emt 0:01:20]} d6 {[%emt 0:00:17]} 15. Rfd1 {[%emt 0:00:07]} Nbd7 {[%emt 0:00:42]} 16. Bxb7 {[%emt 0:01:33]} Qxb7 {[%emt 0:00:02]} 17. Qf3 {[%emt 0:00:02]} d5 {[%emt 0:02:26]} 18. cxd5 {[%emt 0:00:20]} Ne5 {[%emt 0:00:46]} 19. Qe2 {[%emt 0:01:24]} Nxd5 {[%emt 0:00:17]} 20. f4 {[%emt 0:02:57]} Nd7 {[%emt 0:00:55]} 21. Nc6 {[%emt 0:01:37]} Re8 {[%emt 0:00:53]} 22. Bxg7 {[%emt 0:00:57]} Kxg7 {[%emt 0:00:02]} 23. Qb2+ {[%emt 0:00:52]} Kg8 {[%emt 0:00:12]} 24. Qd4 {[%emt 0:00:02]} Rac8 {[%emt 0:00:31]} 25. Ne5 {[%emt 0:00:16]} Nxe5 {[%emt 0:00:54]} 26. fxe5 {[%emt 0:01:23]} Red8 {[%emt 0:06:21]} 27. Rxc8 {[%emt 0:00:25]} Rxc8 {[%emt 0:00:28]} 28. g3 {[%emt 0:00:24]} Kg7 {[%emt 0:01:57]} 29. e4 {[%emt 0:00:03]} Ne7 {[%emt 0:00:01]} 30. Nxb6 {[%emt 0:00:18]} Rc2 {[%emt 0:00:05]} 31. Nd7 {[%emt 0:00:17]} Rxa2 {[%emt 0:01:05]} 32. Qe3 {[%emt 0:00:01]} Nc6 {[%emt 0:00:18]} 33. Qf3 {[%emt 0:00:03]} Qa7+ {[%emt 0:00:04]} 34. Kh1 {[%emt 0:00:03]} Qf2 {[%emt 0:00:08]} 35. Qxf2 {[%emt 0:00:20]} Rxf2 {[%emt 0:00:01]} 36. Rd6 {[%emt 0:00:02]} Rc2 {[%emt 0:00:03]} 37. Kg1 {[%emt 0:00:16]} g5 {[%emt 0:00:02]} 38. g4 {[%emt 0:00:29]} h6 {[%emt 0:00:01]} 39. h3 {[%emt 0:00:04]} a5 {[%emt 0:00:00]} 40. Rd3 {[%emt 0:00:24]} Kg6 {[%emt 0:00:09]} 41. Rf3 {[%emt 0:00:02]} Rd2 {[%emt 0:00:08]} 42. Nc5 {[%emt 0:00:22]} Nxe5 {[%emt 0:00:05]} 43. Rc3 {[%emt 0:00:01]} h5 {[%emt 0:00:09]} 44. gxh5+ {[%emt 0:00:02]} Kxh5 {[%emt 0:00:01]} 45. Nb7 {[%emt 0:00:04]} Ra2 {[%emt 0:00:08]} 46. Nd6 {[%emt 0:00:19]} Kg6 {[%emt 0:00:11]} 47. Nb7 {[%emt 0:00:19]} Kf6 {[%emt 0:00:16]} 48. Kf1 {[%emt 0:00:03]} a4 {[%emt 0:00:12]} 49. bxa4 {[%emt 0:00:11]} Rxa4 {[%emt 0:00:01]} 50. Nc5 {[%emt 0:00:01]} Ra2 {[%emt 0:00:08]} 51. Kg1 {[%emt 0:00:16]} Ng6 {[%emt 0:00:10]} 52. Rf3+ {[%emt 0:00:08]} Ke7 {[%emt 0:00:20]} 53. Rd3 {[%emt 0:00:25]} Nf4 {[%emt 0:00:07]} 54. Rb3 {[%emt 0:00:01]} Kd6 {[%emt 0:00:57]} 55. Nb7+ {[%emt 0:00:19]} Ke5 {[%emt 0:00:04]} 56. Nc5 {[%emt 0:00:04]} Rc2 {[%emt 0:00:10]} 57. Rb5 {[%emt 0:00:13]} Nxh3+ {[%emt 0:00:10]} 58. Kf1 {[%emt 0:00:01]} Kf4 {[%emt 0:00:09]} 59. Rb3 {[%emt 0:00:23]} Rxc5 {[%emt 0:00:10]} 60. Rxh3 {[%emt 0:00:04]} Kxe4 {[%emt 0:00:02]} 61. Rg3 {[%emt 0:00:04]} Kf4 {[%emt 0:00:04]} 62. Ra3 {[%emt 0:00:01]} g4 {[%emt 0:00:05]} 63. Rb3 {[%emt 0:00:01]} f5 {[%emt 0:00:02]} 64. Ra3 {[%emt 0:00:01]} e5 {[%emt 0:00:03]} 65. Rb3 {[%emt 0:00:01]} Rc2 {[%emt 0:00:04]} 66. Ra3 {[%emt 0:00:02]} e4 {[%emt 0:00:01]} 67. Rb3 {[%emt 0:00:02]} e3 {[%emt 0:00:02]} 68. Ra3 {[%emt 0:00:04]} Kf3 {[%emt 0:00:03]} 69. Ra1 {[%emt 0:00:05]} f4 {[%emt 0:00:12]} 70. Rb1 {[%emt 0:00:01]} Rd2 {[%emt 0:00:07]} 71. Ke1 {[%emt 0:00:11]} Rh2 {[%emt 0:00:03]} 0-1

[Event "FIDE Women World Rapid 2024"]
[Site "New York"]
[Date "2024.12.27"]
[Round "5.8"]
[White "Injac, Teodora"]
[Black "Mamedjarova, Turkan"]
[Result "1-0"]
[ECO "D36"]
[WhiteElo "2441"]
[BlackElo "2197"]
[Annotator "ChessBase"]
[PlyCount "69"]
[EventDate "2024.12.14"]
[EventType "swiss"]
[EventCountry "USA"]
[SourceTitle "playchess.com"]
[Source "ChessBase"]
[SourceQuality "1"]
[TimeControl "900+10"]

1. d4 {[%emt 0:00:15]} d5 {[%emt 0:00:33]} 2. c4 {[%emt 0:00:05]} e6 {[%emt 0:00:07]} 3. Nc3 {[%emt 0:00:02]} Nf6 {[%emt 0:00:01]} 4. cxd5 {[%emt 0:00:01]} exd5 {[%emt 0:00:13]} 5. Bg5 {[%emt 0:00:02]} Be7 {[%emt 0:00:08]} 6. e3 {[%emt 0:00:08]} c6 {[%emt 0:00:20]} 7. Bd3 {[%emt 0:00:15]} Nbd7 {[%emt 0:00:27]} 8. h3 {[%emt 0:02:33]} O-O {[%emt 0:00:22]} 9. Nf3 {[%emt 0:00:16]} Re8 {[%emt 0:01:11]} 10. Bf4 {[%emt 0:01:54]} Nf8 {[%emt 0:00:14]} 11. Qc2 {[%emt 0:00:45]} Bd6 {[%emt 0:02:32]} 12. Bxd6 {[%emt 0:00:36]} Qxd6 {[%emt 0:00:02]} 13. O-O-O {[%emt 0:00:36]} b5 {[%emt 0:01:32]} 14. Kb1 {[%emt 0:00:01]} a5 {[%emt 0:00:03]} 15. Rc1 {[%emt 0:00:10]} a4 {[%emt 0:00:14]} 16. g4 {[%emt 0:04:43]} N6d7 {[%emt 0:03:05]} 17. Ne2 {[%emt 0:02:37]} Bb7 {[%emt 0:00:05]} 18. Ng3 {[%emt 0:00:28]} g6 {[%emt 0:01:45]} 19. h4 {[%emt 0:00:09]} b4 {[%emt 0:00:30]} 20. Qd2 {[%emt 0:00:20]} Ba6 {[%emt 0:01:09]} 21. Bxa6 {[%emt 0:00:01]} Rxa6 {[%emt 0:00:01]} 22. h5 {[%emt 0:00:01]} Rb6 {[%emt 0:01:11]} 23. hxg6 {[%emt 0:00:05]} fxg6 {[%emt 0:00:06]} 24. Rh6 {[%emt 0:01:11]} a3 {[%emt 0:00:27]} 25. b3 {[%emt 0:00:03]} c5 {[%emt 0:00:05]} 26. Nf5 {[%emt 0:00:52]} Qf6 {[%emt 0:00:46]} 27. dxc5 {[%emt 0:00:19]} Rc6 {[%emt 0:00:11]} 28. Qxd5+ {[%emt 0:00:22]} Kh8 {[%emt 0:00:01]} 29. N3d4 {[%emt 0:00:38]} Rcc8 {[%emt 0:00:15]} 30. Qd6 {[%emt 0:00:21]} Qg5 {[%emt 0:00:02]} 31. c6 {[%emt 0:00:14]} Qxg4 {[%emt 0:01:53]} 32. cxd7 {[%emt 0:00:08]} Qe4+ {[%emt 0:00:03]} 33. Nc2 {[%emt 0:00:07]} Rc6 {[%emt 0:00:25]} 34. dxe8=Q {[%emt 0:00:14]} Qxe8 {[%emt 0:00:02]} 35. Qd4+ {[%emt 0:00:01]} 1-0

[Event "FIDE Women World Rapid 2024"]
[Site "New York"]
[Date "2024.12.27"]
[Round "5.8"]
[White "Uuriintuya, Uurtsaikh"]
[Black "Paehtz, Elisabeth"]
[Result "0-1"]
[ECO "B27"]
[WhiteElo "2187"]
[BlackElo "2430"]
[Annotator "ChessBase"]
[PlyCount "60"]
[EventDate "2024.12.14"]
[EventType "swiss"]
[EventCountry "USA"]
[SourceTitle "playchess.com"]
[Source "ChessBase"]
[SourceQuality "1"]
[TimeControl "900+10"]

1. e4 {[%emt 0:01:24]} c5 {[%emt 0:00:01]} 2. Nf3 {[%emt 0:00:02]} g6 {[%emt 0:00:01]} 3. d4 {[%emt 0:00:05]} cxd4 {[%emt 0:00:02]} 4. Qxd4 {[%emt 0:00:52]} Nf6 {[%emt 0:00:01]} 5. e5 {[%emt 0:00:04]} Nc6 {[%emt 0:00:02]} 6. Qe3 {[%emt 0:00:50]} Ng4 {[%emt 0:00:35]} 7. Qe4 {[%emt 0:00:26]} d5 {[%emt 0:01:34]} 8. exd6 {[%emt 0:00:33]} Qxd6 {[%emt 0:00:03]} 9. Be2 {[%emt 0:01:04]} Bf5 {[%emt 0:00:46]} 10. Qc4 {[%emt 0:00:33]} Bg7 {[%emt 0:00:52]} 11. O-O {[%emt 0:01:16]} Nd4 {[%emt 0:00:30]} 12. Nbd2 {[%emt 0:01:00]} b5 {[%emt 0:00:14]} 13. Qxd4 {[%emt 0:03:08]} Bxd4 {[%emt 0:00:03]} 14. Bxb5+ {[%emt 0:00:02]} Kf8 {[%emt 0:00:31]} 15. Nb3 {[%emt 0:00:20]} Bb6 {[%emt 0:00:54]} 16. h3 {[%emt 0:00:23]} h5 {[%emt 0:00:06]} 17. c3 {[%emt 0:00:32]} Be4 {[%emt 0:01:32]} 18. Nbd2 {[%emt 0:01:12]} Bxf3 {[%emt 0:00:57]} 19. Nxf3 {[%emt 0:00:05]} Nxf2 {[%emt 0:00:47]} 20. Rxf2 {[%emt 0:00:10]} Bxf2+ {[%emt 0:00:18]} 21. Kxf2 {[%emt 0:00:02]} Qb6+ {[%emt 0:00:10]} 22. Be3 {[%emt 0:02:59]} Qxb5 {[%emt 0:00:02]} 23. b3 {[%emt 0:00:09]} Qd3 {[%emt 0:00:46]} 24. Re1 {[%emt 0:00:02]} Rc8 {[%emt 0:00:36]} 25. c4 {[%emt 0:00:15]} f6 {[%emt 0:00:38]} 26. Kg1 {[%emt 0:00:18]} a6 {[%emt 0:00:20]} 27. c5 {[%emt 0:00:50]} Kf7 {[%emt 0:00:23]} 28. Bf2 {[%emt 0:00:26]} Rhd8 {[%emt 0:00:17]} 29. Rc1 {[%emt 0:00:12]} Qd5 {[%emt 0:00:25]} 30. Kh2 {[%emt 0:00:27]} g5 {[%emt 0:00:10]} 0-1

[Event "FIDE Women World Rapid 2024"]
[Site "New York"]
[Date "2024.12.27"]
[Round "5.9"]
[White "Gunina, Valentina"]
[Black "Munkhzul, Turmunkh"]
[Result "0-1"]
[ECO "E94"]
[WhiteElo "2425"]
[BlackElo "2301"]
[Annotator "ChessBase"]
[PlyCount "266"]
[EventDate "2024.12.14"]
[EventType "swiss"]
[EventCountry "USA"]
[SourceTitle "playchess.com"]
[Source "ChessBase"]
[SourceQuality "1"]
[TimeControl "900+10"]

1. d4 {[%emt 0:00:02]} Nf6 {[%emt 0:00:03]} 2. c4 {[%emt 0:00:01]} g6 {[%emt 0:00:04]} 3. Nc3 {[%emt 0:00:02]} Bg7 {[%emt 0:00:03]} 4. e4 {[%emt 0:00:01]} d6 {[%emt 0:00:03]} 5. Nf3 {[%emt 0:00:02]} O-O {[%emt 0:00:03]} 6. Be2 {[%emt 0:00:02]} e5 {[%emt 0:00:05]} 7. Be3 {[%emt 0:00:02]} exd4 {[%emt 0:00:09]} 8. Nxd4 {[%emt 0:00:02]} Re8 {[%emt 0:00:08]} 9. Qc2 {[%emt 0:00:03]} c6 {[%emt 0:00:14]} 10. O-O {[%emt 0:00:08]} Qe7 {[%emt 0:00:15]} 11. Bf3 {[%emt 0:00:08]} Bg4 {[%emt 0:00:22]} 12. Rad1 {[%emt 0:00:16]} Bxf3 {[%emt 0:00:19]} 13. Nxf3 {[%emt 0:00:02]} Nxe4 {[%emt 0:00:14]} 14. Nxe4 {[%emt 0:00:02]} Qxe4 {[%emt 0:00:01]} 15. Qxe4 {[%emt 0:00:02]} Rxe4 {[%emt 0:00:01]} 16. Rxd6 {[%emt 0:00:01]} Na6 {[%emt 0:00:01]} 17. b3 {[%emt 0:00:06]} Nb4 {[%emt 0:05:44]} 18. Rfd1 {[%emt 0:00:02]} Nxa2 {[%emt 0:00:47]} 19. Rd8+ {[%emt 0:00:28]} Re8 {[%emt 0:00:01]} 20. Rxe8+ {[%emt 0:00:16]} Rxe8 {[%emt 0:00:02]} 21. Rd7 {[%emt 0:00:02]} b5 {[%emt 0:00:44]} 22. Rxa7 {[%emt 0:00:49]} Nb4 {[%emt 0:01:00]} 23. g3 {[%emt 0:00:26]} Nc2 {[%emt 0:00:20]} 24. Bb6 {[%emt 0:00:35]} bxc4 {[%emt 0:00:57]} 25. bxc4 {[%emt 0:00:01]} h6 {[%emt 0:00:10]} 26. Rc7 {[%emt 0:01:44]} Re6 {[%emt 0:00:14]} 27. h4 {[%emt 0:00:20]} Na3 {[%emt 0:00:30]} 28. c5 {[%emt 0:01:43]} Nb5 {[%emt 0:00:10]} 29. Rd7 {[%emt 0:00:23]} Nc3 {[%emt 0:00:43]} 30. Bc7 {[%emt 0:00:53]} Ne4 {[%emt 0:01:29]} 31. Bb6 {[%emt 0:01:02]} Bc3 {[%emt 0:00:53]} 32. Kg2 {[%emt 0:02:11]} Kg7 {[%emt 0:00:37]} 33. Nd4 {[%emt 0:00:39]} Bxd4 {[%emt 0:00:47]} 34. Rxd4 {[%emt 0:00:02]} Nc3 {[%emt 0:00:00]} 35. Rd8 {[%emt 0:00:48]} Nb5 {[%emt 0:00:40]} 36. Rc8 {[%emt 0:00:38]} h5 {[%emt 0:00:28]} 37. Ba5 {[%emt 0:00:11]} Kf6 {[%emt 0:00:05]} 38. Bd2 {[%emt 0:00:09]} Kf5 {[%emt 0:00:27]} 39. Rf8 {[%emt 0:00:43]} Re7 {[%emt 0:00:42]} 40. Rd8 {[%emt 0:00:38]} Ke6 {[%emt 0:00:13]} 41. Be3 {[%emt 0:00:29]} Rd7 {[%emt 0:00:07]} 42. Ra8 {[%emt 0:00:33]} Kd5 {[%emt 0:00:08]} 43. Ra4 {[%emt 0:00:02]} Ra7 {[%emt 0:00:09]} 44. Rf4 {[%emt 0:00:13]} Ke6 {[%emt 0:00:45]} 45. Re4+ {[%emt 0:00:11]} Kd5 {[%emt 0:00:01]} 46. Re8 {[%emt 0:00:23]} Rd7 {[%emt 0:00:08]} 47. Kf3 {[%emt 0:00:03]} Nd4+ {[%emt 0:00:10]} 48. Kg2 {[%emt 0:01:00]} Nf5 {[%emt 0:00:14]} 49. Bg5 {[%emt 0:00:01]} Kxc5 {[%emt 0:00:03]} 50. f3 {[%emt 0:00:01]} Ng7 {[%emt 0:00:27]} 51. Re5+ {[%emt 0:00:16]} Kd6 {[%emt 0:00:10]} 52. Ra5 {[%emt 0:00:28]} Ne6 {[%emt 0:00:01]} 53. Bf6 {[%emt 0:00:02]} c5 {[%emt 0:00:10]} 54. g4 {[%emt 0:00:07]} Kd5 {[%emt 0:00:14]} 55. Kf2 {[%emt 0:00:26]} Rb7 {[%emt 0:00:03]} 56. Ra8 {[%emt 0:00:11]} Rb4 {[%emt 0:01:08]} 57. gxh5 {[%emt 0:00:06]} gxh5 {[%emt 0:00:01]} 58. Rh8 {[%emt 0:01:03]} Nf4 {[%emt 0:00:01]} 59. Bc3 {[%emt 0:00:58]} Rc4 {[%emt 0:00:45]} 60. Bd2 {[%emt 0:00:16]} Ng6 {[%emt 0:00:22]} 61. Rxh5+ {[%emt 0:00:03]} Kd6 {[%emt 0:00:09]} 62. Bg5 {[%emt 0:00:01]} Rc2+ {[%emt 0:00:03]} 63. Kg3 {[%emt 0:00:14]} c4 {[%emt 0:00:07]} 64. Bf6 {[%emt 0:00:07]} Ke6 {[%emt 0:00:03]} 65. Bd4 {[%emt 0:00:33]} Rd2 {[%emt 0:00:03]} 66. Be3 {[%emt 0:00:08]} Rd3 {[%emt 0:00:03]} 67. Kf2 {[%emt 0:00:01]} c3 {[%emt 0:00:18]} 68. Rc5 {[%emt 0:00:28]} Nxh4 {[%emt 0:00:13]} 69. Ke2 {[%emt 0:00:01]} Rd5 {[%emt 0:00:03]} 70. Rxc3 {[%emt 0:00:07]} Nf5 {[%emt 0:00:02]} 71. Bf4 {[%emt 0:00:07]} Nd4+ {[%emt 0:00:04]} 72. Kf2 {[%emt 0:00:21]} Kf5 {[%emt 0:00:03]} 73. Be3 {[%emt 0:00:09]} Ne6 {[%emt 0:00:03]} 74. Ra3 {[%emt 0:00:09]} Rb5 {[%emt 0:00:05]} 75. Ra7 {[%emt 0:00:03]} f6 {[%emt 0:00:06]} 76. Ra2 {[%emt 0:00:45]} Rd5 {[%emt 0:00:13]} 77. Rc2 {[%emt 0:00:14]} Ra5 {[%emt 0:00:03]} 78. Bd2 {[%emt 0:00:32]} Rb5 {[%emt 0:00:14]} 79. Kg3 {[%emt 0:00:08]} Rb3 {[%emt 0:00:07]} 80. Rc4 {[%emt 0:00:04]} Rd3 {[%emt 0:00:20]} 81. Bc3 {[%emt 0:00:35]} Ng5 {[%emt 0:00:47]} 82. Rf4+ {[%emt 0:00:02]} Ke6 {[%emt 0:00:00]} 83. Rxf6+ {[%emt 0:00:01]} Ke7 {[%emt 0:00:01]} 84. Rc6 {[%emt 0:00:42]} Ne4+ {[%emt 0:00:03]} 85. Kf4 {[%emt 0:00:05]} Nxc3 {[%emt 0:00:03]} 86. Rc7+ {[%emt 0:00:40]} Kd6 {[%emt 0:00:05]} 87. Rc8 {[%emt 0:00:07]} Kd7 {[%emt 0:00:23]} 88. Rc5 {[%emt 0:00:08]} Ne2+ {[%emt 0:00:18]} 89. Ke4 {[%emt 0:00:05]} Ra3 {[%emt 0:00:01]} 90. Rc2 {[%emt 0:00:07]} Ng3+ {[%emt 0:00:25]} 91. Kf4 {[%emt 0:00:01]} Nh5+ {[%emt 0:00:01]} 92. Kg5 {[%emt 0:00:06]} Ng7 {[%emt 0:00:01]} 93. f4 {[%emt 0:00:42]} Ne6+ {[%emt 0:00:04]} 94. Kg4 {[%emt 0:00:01]} Ra4 {[%emt 0:00:03]} 95. Rf2 {[%emt 0:00:03]} Ke7 {[%emt 0:00:02]} 96. Kf5 {[%emt 0:00:18]} Kf7 {[%emt 0:00:04]} 97. Ke5 {[%emt 0:00:17]} Ra5+ {[%emt 0:00:01]} 98. Ke4 {[%emt 0:00:04]} Kf6 {[%emt 0:00:01]} 99. f5 {[%emt 0:00:01]} Ra4+ {[%emt 0:00:04]} 100. Kd5 {[%emt 0:00:06]} Nf4+ {[%emt 0:00:05]} 101. Kc6 {[%emt 0:00:02]} Kxf5 {[%emt 0:00:03]} 102. Kb5 {[%emt 0:00:04]} Rd4 {[%emt 0:00:03]} 103. Rc2 {[%emt 0:00:01]} Ke5 {[%emt 0:00:04]} 104. Rc1 {[%emt 0:00:08]} Rd2 {[%emt 0:00:17]} 105. Kc4 {[%emt 0:00:24]} Rd4+ {[%emt 0:00:15]} 106. Kb5 {[%emt 0:00:08]} Nd3 {[%emt 0:00:02]} 107. Rc8 {[%emt 0:00:06]} Rb4+ {[%emt 0:00:05]} 108. Ka5 {[%emt 0:00:01]} Rb1 {[%emt 0:00:04]} 109. Rc2 {[%emt 0:00:38]} Kd4 {[%emt 0:00:41]} 110. Rh2 {[%emt 0:00:08]} Nf4 {[%emt 0:00:08]} 111. Rh4 {[%emt 0:00:04]} Ke5 {[%emt 0:00:06]} 112. Rh8 {[%emt 0:00:09]} Nd5 {[%emt 0:00:04]} 113. Ka4 {[%emt 0:00:18]} Kd4 {[%emt 0:00:07]} 114. Rh4+ {[%emt 0:00:07]} Kc5 {[%emt 0:00:01]} 115. Rh5 {[%emt 0:00:06]} Rb8 {[%emt 0:00:23]} 116. Rg5 {[%emt 0:00:06]} Kc4 {[%emt 0:00:06]} 117. Rg4+ {[%emt 0:00:01]} Kd3 {[%emt 0:00:01]} 118. Rg3+ {[%emt 0:00:04]} Ne3 {[%emt 0:00:01]} 119. Rh3 {[%emt 0:00:09]} Kc4 {[%emt 0:00:04]} 120. Rh4+ {[%emt 0:00:03]} Kc3 {[%emt 0:00:01]} 121. Rh3 {[%emt 0:00:04]} Kc4 {[%emt 0:00:04]} 122. Rh4+ {[%emt 0:00:01]} Kc5 {[%emt 0:00:00]} 123. Rh5+ {[%emt 0:00:06]} Nd5 {[%emt 0:00:04]} 124. Rg5 {[%emt 0:00:02]} Rh8 {[%emt 0:00:25]} 125. Ka3 {[%emt 0:00:06]} Rh3+ {[%emt 0:00:02]} 126. Kb2 {[%emt 0:00:01]} Rf3 {[%emt 0:00:08]} 127. Rh5 {[%emt 0:00:05]} Kc4 {[%emt 0:00:02]} 128. Rh4+ {[%emt 0:00:07]} Nf4 {[%emt 0:00:00]} 129. Rg4 {[%emt 0:00:04]} Kb4 {[%emt 0:00:02]} 130. Kc2 {[%emt 0:00:13]} Rf2+ {[%emt 0:00:01]} 131. Kd1 {[%emt 0:00:01]} Kc3 {[%emt 0:00:01]} 132. Rg3+ {[%emt 0:02:20]} Nd3 {[%emt 0:00:01]} 133. Rg2 {[%emt 0:00:02]} Nb2+ {[%emt 0:00:01]} 0-1

[Event "FIDE Women World Rapid 2024"]
[Site "New York"]
[Date "2024.12.27"]
[Round "5.9"]
[White "Sultanbek, Zeinep"]
[Black "Garcia Martin, Marta"]
[Result "0-1"]
[ECO "A04"]
[WhiteElo "2101"]
[BlackElo "2322"]
[Annotator "ChessBase"]
[PlyCount "108"]
[EventDate "2024.12.14"]
[EventType "swiss"]
[EventCountry "USA"]
[SourceTitle "playchess.com"]
[Source "ChessBase"]
[SourceQuality "1"]
[TimeControl "900+10"]

1. Nf3 {[%emt 0:00:02]} g6 {[%emt 0:01:15]} 2. g3 {[%emt 0:00:03]} Bg7 {[%emt 0:00:10]} 3. d4 {[%emt 0:00:03]} c5 {[%emt 0:00:13]} 4. Bg2 {[%emt 0:00:23]} cxd4 {[%emt 0:00:04]} 5. Nxd4 {[%emt 0:00:02]} Nc6 {[%emt 0:00:08]} 6. Nxc6 {[%emt 0:00:06]} bxc6 {[%emt 0:00:08]} 7. O-O {[%emt 0:00:02]} h5 {[%emt 0:00:50]} 8. Bg5 {[%emt 0:00:12]} Bxb2 {[%emt 0:00:20]} 9. Nd2 {[%emt 0:00:01]} Qa5 {[%emt 0:02:58]} 10. Be3 {[%emt 0:01:43]} Bg7 {[%emt 0:02:30]} 11. Nb3 {[%emt 0:00:35]} Qc7 {[%emt 0:01:32]} 12. Rb1 {[%emt 0:00:27]} Nf6 {[%emt 0:00:16]} 13. Bf4 {[%emt 0:00:01]} d6 {[%emt 0:02:26]} 14. Na5 {[%emt 0:00:32]} Bd7 {[%emt 0:00:30]} 15. Qd2 {[%emt 0:00:03]} O-O {[%emt 0:01:34]} 16. Rb7 {[%emt 0:00:01]} Qc8 {[%emt 0:00:01]} 17. Rfb1 {[%emt 0:00:02]} Nd5 {[%emt 0:01:48]} 18. Bxd5 {[%emt 0:00:27]} cxd5 {[%emt 0:00:01]} 19. Qxd5 {[%emt 0:00:01]} Re8 {[%emt 0:01:14]} 20. c4 {[%emt 0:00:18]} Be6 {[%emt 0:00:13]} 21. Qb5 {[%emt 0:00:58]} Qc5 {[%emt 0:00:14]} 22. Nc6 {[%emt 0:00:27]} Bf6 {[%emt 0:00:10]} 23. Rc1 {[%emt 0:02:43]} a6 {[%emt 0:00:03]} 24. Qxc5 {[%emt 0:00:48]} dxc5 {[%emt 0:00:01]} 25. Be5 {[%emt 0:00:01]} Bxe5 {[%emt 0:00:18]} 26. Nxe5 {[%emt 0:00:01]} Rab8 {[%emt 0:00:16]} 27. Rcb1 {[%emt 0:00:01]} Rxb7 {[%emt 0:00:03]} 28. Rxb7 {[%emt 0:00:01]} Kf8 {[%emt 0:00:19]} 29. Ra7 {[%emt 0:01:01]} Rb8 {[%emt 0:00:06]} 30. Rxa6 {[%emt 0:00:03]} Bf5 {[%emt 0:00:16]} 31. f3 {[%emt 0:00:18]} Rb2 {[%emt 0:00:07]} 32. Kf2 {[%emt 0:00:02]} f6 {[%emt 0:00:04]} 33. Ra8+ {[%emt 0:00:03]} Kg7 {[%emt 0:00:01]} 34. Nc6 {[%emt 0:00:01]} Bd3 {[%emt 0:00:05]} 35. a4 {[%emt 0:00:24]} Rxe2+ {[%emt 0:00:03]} 36. Kg1 {[%emt 0:00:00]} Bxc4 {[%emt 0:00:10]} 37. Ra7 {[%emt 0:00:05]} Kf8 {[%emt 0:00:24]} 38. a5 {[%emt 0:00:04]} Bd5 {[%emt 0:00:13]} 39. Nb8 {[%emt 0:00:02]} c4 {[%emt 0:00:15]} 40. Rc7 {[%emt 0:00:05]} Ra2 {[%emt 0:00:18]} 41. a6 {[%emt 0:00:02]} Bxf3 {[%emt 0:00:10]} 42. Rxc4 {[%emt 0:00:05]} e5 {[%emt 0:00:10]} 43. Rc7 {[%emt 0:01:11]} e4 {[%emt 0:00:01]} 44. Rc3 {[%emt 0:00:06]} Ke7 {[%emt 0:00:14]} 45. a7 {[%emt 0:00:10]} Kd6 {[%emt 0:00:14]} 46. Rc6+ {[%emt 0:00:01]} Ke5 {[%emt 0:00:10]} 47. Nd7+ {[%emt 0:02:22]} Kd4 {[%emt 0:00:01]} 48. Nxf6 {[%emt 0:00:39]} e3 {[%emt 0:00:09]} 49. Rc1 {[%emt 0:00:25]} Rg2+ {[%emt 0:00:13]} 50. Kf1 {[%emt 0:00:01]} e2+ {[%emt 0:00:01]} 51. Ke1 {[%emt 0:00:09]} Rg1+ {[%emt 0:00:01]} 52. Kf2 {[%emt 0:00:04]} Rxc1 {[%emt 0:00:08]} 53. Kxf3 {[%emt 0:00:02]} e1=Q {[%emt 0:00:05]} 54. a8=Q {[%emt 0:00:02]} Qh1+ {[%emt 0:00:01]} 0-1

[Event "FIDE Women World Rapid 2024"]
[Site "New York"]
[Date "2024.12.27"]
[Round "5.10"]
[White "Bulmaga, Irina"]
[Black "Khamdamova, Afruza"]
[Result "0-1"]
[ECO "C77"]
[WhiteElo "2386"]
[BlackElo "2354"]
[Annotator "ChessBase"]
[PlyCount "96"]
[EventDate "2024.12.14"]
[EventType "swiss"]
[EventCountry "USA"]
[SourceTitle "playchess.com"]
[Source "ChessBase"]
[SourceQuality "1"]
[TimeControl "900+10"]

1. e4 {[%emt 0:00:03]} e5 {[%emt 0:00:01]} 2. Nf3 {[%emt 0:00:03]} Nc6 {[%emt 0:00:01]} 3. Bb5 {[%emt 0:00:02]} a6 {[%emt 0:00:01]} 4. Ba4 {[%emt 0:00:03]} Nf6 {[%emt 0:00:02]} 5. Nc3 {[%emt 0:00:01]} b5 {[%emt 0:00:05]} 6. Bb3 {[%emt 0:00:03]} Bc5 {[%emt 0:00:06]} 7. d3 {[%emt 0:01:05]} d6 {[%emt 0:00:02]} 8. Nd5 {[%emt 0:01:47]} h6 {[%emt 0:00:01]} 9. Nxf6+ {[%emt 0:01:35]} Qxf6 {[%emt 0:00:02]} 10. Bd5 {[%emt 0:00:02]} Bd7 {[%emt 0:00:16]} 11. Be3 {[%emt 0:00:34]} O-O {[%emt 0:01:54]} 12. Bxc5 {[%emt 0:00:28]} dxc5 {[%emt 0:00:02]} 13. Bxc6 {[%emt 0:01:50]} Bxc6 {[%emt 0:00:01]} 14. Qe2 {[%emt 0:00:33]} a5 {[%emt 0:02:14]} 15. O-O {[%emt 0:02:10]} a4 {[%emt 0:00:44]} 16. Qe3 {[%emt 0:00:33]} Qe7 {[%emt 0:00:16]} 17. Nd2 {[%emt 0:00:47]} Rae8 {[%emt 0:01:28]} 18. b3 {[%emt 0:00:25]} a3 {[%emt 0:01:19]} 19. Rae1 {[%emt 0:00:19]} Qd6 {[%emt 0:01:52]} 20. h3 {[%emt 0:03:01]} Bd7 {[%emt 0:01:22]} 21. f4 {[%emt 0:00:00]} f5 {[%emt 0:00:46]} 22. fxe5 {[%emt 0:00:00]} Qxe5 {[%emt 0:00:11]} 23. Nf3 {[%emt 0:00:08]} Qc3 {[%emt 0:00:02]} 24. Qd2 {[%emt 0:00:15]} Qxd2 {[%emt 0:02:10]} 25. Nxd2 {[%emt 0:00:01]} fxe4 {[%emt 0:00:12]} 26. Rxf8+ {[%emt 0:00:56]} Kxf8 {[%emt 0:00:02]} 27. Rxe4 {[%emt 0:00:08]} Rxe4 {[%emt 0:02:42]} 28. dxe4 {[%emt 0:00:02]} c4 {[%emt 0:00:45]} 29. bxc4 {[%emt 0:00:21]} Be6 {[%emt 0:00:01]} 30. Kf2 {[%emt 0:00:43]} b4 {[%emt 0:00:29]} 31. Ke3 {[%emt 0:00:15]} c5 {[%emt 0:00:01]} 32. Kd3 {[%emt 0:00:19]} Ke7 {[%emt 0:00:01]} 33. Nb3 {[%emt 0:01:22]} Kd6 {[%emt 0:00:01]} 34. e5+ {[%emt 0:00:01]} Kxe5 {[%emt 0:00:17]} 35. Nxc5 {[%emt 0:00:03]} Bf5+ {[%emt 0:00:01]} 36. Kd2 {[%emt 0:00:29]} Kd4 {[%emt 0:00:01]} 37. Nb3+ {[%emt 0:00:15]} Kxc4 {[%emt 0:00:02]} 38. h4 {[%emt 0:00:09]} h5 {[%emt 0:00:20]} 39. Na5+ {[%emt 0:00:08]} Kd4 {[%emt 0:00:27]} 40. Nb3+ {[%emt 0:00:02]} Kd5 {[%emt 0:00:17]} 41. c3 {[%emt 0:00:14]} Kc4 {[%emt 0:00:20]} 42. Na5+ {[%emt 0:00:15]} Kb5 {[%emt 0:00:02]} 43. Nb3 {[%emt 0:00:02]} Bb1 {[%emt 0:00:15]} 44. Nc1 {[%emt 0:00:41]} Bxa2 {[%emt 0:00:35]} 45. cxb4 {[%emt 0:00:08]} Bd5 {[%emt 0:00:09]} 46. Kc2 {[%emt 0:00:11]} Kxb4 {[%emt 0:00:22]} 47. g3 {[%emt 0:00:15]} Be4+ {[%emt 0:00:02]} 48. Kd2 {[%emt 0:00:04]} Bb1 {[%emt 0:00:05]} 0-1